fUST/lending_fUST_20240807
["ID","MTS","AMOUNT","RATE_DAILY","PERIOD"]
[334388566,1723021841300,-155.78119,0.00032876,7]
[334388567,1723021841310,-120.95838077,0.00032876,14]
[334388568,1723021841332,-379.04161923,0.00032876,14]
[334388569,1723021841342,-516.93084222,0.00032876,14]
[334388570,1723021841352,-500.0,0.00032876,14]
[334388571,1723021841362,-500.0,0.00032876,14]
[334388572,1723021841372,-542.68015061,0.00032876,14]
[334388573,1723021841382,-502.35556235,0.00032876,14]
[334388574,1723021841391,-582.75,0.00032876,14]
[334388575,1723021841401,-500.41297889,0.00032876,14]
[334388576,1723021841411,-818.74,0.00032876,14]
[334388577,1723021841420,-500.0,0.00032876,14]
[334388578,1723021841430,-500.40925486,0.00032876,14]
[334388579,1723021841440,-500.0,0.00032876,14]
[334388580,1723021841450,-500.0,0.00032876,2]
[334388581,1723021841459,-500.0,0.00032876,14]
[334388582,1723021841470,-500.0,0.00032876,14]
[334388583,1723021841480,-531.51816542,0.00032876,14]
[334388584,1723021841490,-500.0,0.00032876,14]
[334388585,1723021841499,-500.0,0.00032876,14]
[334388586,1723021841509,-500.0,0.00032876,14]
[334388587,1723021841519,-502.16312647,0.00032876,14]
[334388588,1723021841533,-500.0,0.00032876,14]
[334388589,1723021841543,-500.0,0.00032876,14]
[334388590,1723021841553,-500.0,0.00032876,14]
[334388591,1723021841562,-500.0,0.00032876,14]
[334388592,1723021841573,-500.0,0.00032876,14]
[334388593,1723021841583,-500.0,0.00032876,14]
[334388594,1723021841593,-500.56658371,0.00032876,14]
[334388595,1723021841604,-500.0,0.00032876,14]
[334388596,1723021841615,-278.97595133,0.00032876,14]
[334388597,1723021841625,-500.0,0.00032876,14]
[334388598,1723021841635,-500.0,0.00032876,14]
[334388599,1723021841646,-500.0,0.00032876,14]
[334388600,1723021841656,-597.16655605,0.00032876,14]
[334388601,1723021841665,-504.39698816,0.00032876,14]
[334388602,1723021841676,-500.62765626,0.00032876,14]
[334388603,1723021841687,-501.01152832,0.00032876,14]
[334388604,1723021841698,-501.55409277,0.00032876,14]
[334388605,1723021841709,-405.7183097,0.00032876,14]
[334388606,1723021841718,-500.0,0.00032876,14]
[334388607,1723021841728,-649.18,0.00032876,14]
[334388608,1723021841738,-501.52361244,0.00032876,14]
[334388609,1723021841748,-500.0,0.00032876,14]
[334388610,1723021841758,-500.0,0.00032876,14]
[334388611,1723021841767,-500.0,0.00032876,14]
[334388612,1723021841780,-500.0,0.00032876,14]
[334388613,1723021841789,-500.0,0.00032876,14]
[334388614,1723021841799,-500.0,0.00032876,14]
[334388615,1723021841808,-645.55270096,0.00032876,14]
[334388616,1723021841817,-500.0,0.00032876,14]
[334388617,1723021841826,-500.0,0.00032876,14]
[334388618,1723021841836,-500.0,0.00032876,14]
[334388619,1723021841845,-500.0,0.00032876,14]
[334388620,1723021841855,-631.24154233,0.00032876,14]
[334388621,1723021841865,-553.82,0.00032876,14]
[334388622,1723021841875,-500.0,0.00032876,14]
[334388623,1723021841884,-500.0,0.00032876,14]
[334388624,1723021841894,-500.0,0.00032876,14]
[334388625,1723021841904,-500.0,0.00032876,14]
[334388626,1723021841914,-500.0,0.00032876,14]
[334388627,1723021841924,-500.0,0.00032876,14]
[334388628,1723021841935,-500.0,0.00032876,14]
[334388629,1723021841946,-558.34844257,0.00032876,14]
[334388630,1723021841956,-593.07,0.00032876,14]
[334388631,1723021841965,-500.0,0.00032876,14]
[334388632,1723021841975,-500.82657347,0.00032876,14]
[334388633,1723021841987,-644.09,0.00032876,14]
[334388634,1723021841997,-337.33153932,0.00032876,14]
[334388635,1723021842007,-501.13023387,0.00032876,14]
[334388636,1723021842018,-500.0,0.00032876,14]
[334388637,1723021842032,-500.0,0.00032876,14]
[334388638,1723021842043,-645.2,0.00032876,14]
[334388639,1723021842052,-344.09474634,0.00032876,14]
[334388640,1723021842062,-505.16360178,0.00032876,14]
[334388641,1723021842073,-500.0,0.00032876,14]
[334388642,1723021842082,-1840.44,0.00032876,14]
[334388643,1723021842092,-500.0,0.00032876,14]
[334388644,1723021842102,-2076.63,0.00032876,14]
[334388645,1723021842111,-515.03401737,0.00032876,14]
[334388646,1723021842121,-531.74,0.00032876,14]
[334388647,1723021842131,-500.0,0.00032876,14]
[334388648,1723021842140,-500.0,0.00032876,14]
[334388649,1723021842150,-500.0,0.00032876,14]
[334388650,1723021842159,-1046.45,0.00032876,14]
[334388651,1723021842169,-500.0,0.00032876,14]
[334388652,1723021842178,-546.28,0.00032876,14]
[334388653,1723021842188,-500.0,0.00032876,14]
[334388655,1723021842198,-500.0,0.00032876,14]
[334388657,1723021842208,-500.0,0.00032876,14]
[334388659,1723021842218,-500.0,0.00032876,14]
[334388661,1723021842228,-500.0,0.00032876,14]
[334388663,1723021842238,-500.0,0.00032876,14]
[334388666,1723021842247,-500.0,0.00032876,14]
[334388668,1723021842257,-500.0,0.00032876,14]
[334388670,1723021842267,-500.0,0.00032876,14]
[334388672,1723021842282,-530.26,0.00032876,14]
[334388674,1723021842291,-500.0,0.00032876,14]
[334388675,1723021842302,-500.0,0.00032876,14]
[334388677,1723021842312,-816.37,0.00032876,14]
[334388678,1723021842321,-500.0,0.00032876,14]
[334388679,1723021842331,-500.0,0.00032876,14]
[334388682,1723021842341,-500.0,0.00032876,14]
[334388684,1723021842352,-671.07,0.00032876,14]
[334388685,1723021842361,-877.73,0.00032876,14]
[334388686,1723021842371,-500.0,0.00032876,14]
[334388687,1723021842381,-607.91,0.00032876,14]
[334388688,1723021842390,-390.87362543,0.00032876,14]
[334388689,1723021842400,-2275.01,0.00032876,14]
[334388690,1723021842410,-1185.24,0.00032876,14]
[334388691,1723021842420,-500.0,0.00032876,14]
[334388692,1723021842430,-500.0,0.00032876,14]
[334388693,1723021842440,-505.79,0.00032876,14]
[334388694,1723021842450,-500.0,0.00032876,14]
[334388695,1723021842460,-500.0,0.00032876,14]
[334388696,1723021842470,-501.06654995,0.00032876,14]
[334388697,1723021842480,-500.0,0.00032876,14]
[334388699,1723021842490,-705.01,0.00032876,14]
[334388700,1723021842499,-501.65,0.00032876,14]
[334388701,1723021842510,-500.0,0.00032876,14]
[334388702,1723021842519,-500.0,0.00032876,14]
[334388704,1723021842536,-532.33,0.00032876,14]
[334388705,1723021842549,-500.0,0.00032876,14]
[334388706,1723021842559,-500.0,0.00032876,14]
[334388707,1723021842569,-500.0,0.00032876,14]
[334388708,1723021842578,-500.0,0.00032876,14]
[334388709,1723021842589,-500.0,0.00032876,14]
[334388710,1723021842598,-1095.06,0.00032876,14]
[334388711,1723021842610,-638.7,0.00032876,14]
[334388712,1723021842620,-500.0,0.00032876,14]
[334388714,1723021842631,-955.51,0.00032876,14]
[334388715,1723021842640,-500.0,0.00032876,14]
[334388718,1723021842650,-500.0,0.00032876,14]
[334388719,1723021842659,-711.91,0.00032876,14]
[334388721,1723021842668,-502.391791,0.00032876,14]
[334388724,1723021842678,-500.0,0.00032876,14]
[334388725,1723021842688,-500.0,0.00032876,14]
[334388726,1723021842698,-637.18,0.00032876,14]
[334388727,1723021842708,-1315.264259,0.00032876,7]
[334388728,1723021842718,-1315.264259,0.00032876,7]
[334388729,1723021842728,-1315.264259,0.00032876,7]
[334388731,1723021842738,-200.0,0.00032876,7]
[334388732,1723021842748,-500.0,0.00032876,14]
[334388735,1723021842759,-500.0,0.00032876,14]
[334388737,1723021842769,-500.0,0.00032876,14]
[334388739,1723021842783,-500.0,0.00032876,14]
[334388741,1723021842793,-597.34,0.00032876,14]
[334388745,1723021842803,-501.87385666,0.00032876,14]
[334388747,1723021842812,-500.0,0.00032876,14]
[334388749,1723021842822,-1563.39,0.00032876,14]
[334388751,1723021842832,-644.08717906,0.00032876,14]
[334388753,1723021842841,-1685.39,0.00032876,14]
[334388755,1723021842851,-547.54,0.00032876,14]
[334388757,1723021842861,-500.40822123,0.00032876,14]
[334388760,1723021842870,-500.0,0.00032876,14]
[334388762,1723021842880,-3274.21,0.00032876,14]
[334388764,1723021842889,-500.0,0.00032876,14]
[334388766,1723021842900,-500.0,0.00032876,14]
[334388768,1723021842910,-500.0,0.00032876,14]
[334388770,1723021842920,-501.17811236,0.00032876,7]
[334388772,1723021842931,-2180.2,0.00032876,14]
[334388775,1723021842941,-500.0,0.00032876,14]
[334388777,1723021842951,-500.0,0.00032876,14]
[334388779,1723021842962,-500.0,0.00032876,14]
[334388781,1723021842972,-546.13,0.00032876,14]
[334388783,1723021842981,-500.0,0.00032876,14]
[334388785,1723021842991,-500.0,0.00032876,14]
[334388787,1723021843001,-500.0,0.00032876,14]
[334388789,1723021843011,-500.0,0.00032876,14]
[334388791,1723021843020,-500.0,0.00032876,14]
[334388793,1723021843036,-500.0,0.00032876,14]
[334388795,1723021843045,-503.31,0.00032876,14]
[334388797,1723021843054,-500.0,0.00032876,14]
[334388799,1723021843064,-500.0,0.00032876,14]
[334388801,1723021843074,-500.0,0.00032876,14]
[334388803,1723021843084,-500.0,0.00032876,14]
[334388805,1723021843093,-1857.8,0.00032876,14]
[334388807,1723021843103,-2917.67,0.00032876,14]
[334388809,1723021843113,-500.0,0.00032876,14]
[334388812,1723021843122,-500.45600032,0.00032876,14]
[334388814,1723021843133,-500.0,0.00032876,14]
[334388816,1723021843143,-500.0,0.00032876,14]
[334388818,1723021843153,-626.46,0.00032876,14]
[334388820,1723021843163,-500.57728516,0.00032876,14]
[334388821,1723021843173,-1012.21,0.00032876,14]
[334388822,1723021843184,-500.0,0.00032876,14]
[334388824,1723021843194,-500.0,0.00032876,14]
[334388826,1723021843204,-3545.76,0.00032876,14]
[334388828,1723021843215,-1178.22,0.00032876,14]
[334388830,1723021843225,-503.34371569,0.00032876,14]
[334388832,1723021843234,-704.7,0.00032876,14]
[334388834,1723021843244,-507.38,0.00032876,14]
[334388836,1723021843255,-500.0,0.00032876,14]
[334388839,1723021843265,-502.52953323,0.00032876,14]
[334388841,1723021843275,-760.04,0.00032876,14]
[334388843,1723021843290,-979.68,0.00032876,14]
[334388845,1723021843299,-500.0,0.00032876,2]
[334388847,1723021843310,-1177.89,0.00032876,14]
[334388849,1723021843320,-500.0,0.00032876,14]
[334388851,1723021843330,-572.30403218,0.00032876,14]
[334388853,1723021843340,-500.0,0.00032876,14]
[334388855,1723021843349,-503.47788759,0.00032876,14]
[334388857,1723021843359,-751.81,0.00032876,14]
[334388859,1723021843369,-1903.05,0.00032876,14]
[334388861,1723021843379,-500.0,0.00032876,14]
[334388863,1723021843390,-500.0,0.00032876,14]
[334388865,1723021843400,-621.17,0.00032876,14]
[334388867,1723021843410,-1195.88,0.00032876,14]
[334388870,1723021843419,-500.0,0.00032876,14]
[334388873,1723021843429,-500.0,0.00032876,14]
[334388876,1723021843439,-500.0,0.00032876,14]
[334388879,1723021843449,-500.0,0.00032876,14]
[334388881,1723021843460,-500.0,0.00032876,14]
[334388884,1723021843470,-500.0,0.00032876,14]
[334388885,1723021843480,-1424.88,0.00032876,14]
[334388887,1723021843490,-628.85,0.00032876,14]
[334388888,1723021843500,-500.0,0.00032876,14]
[334388889,1723021843509,-500.0,0.00032876,14]
[334388890,1723021843519,-801.25,0.00032876,14]
[334388891,1723021843533,-500.0,0.00032876,14]
[334388892,1723021843543,-560.51,0.00032876,14]
[334388893,1723021843552,-500.0,0.00032876,14]
[334388894,1723021843563,-1368.96,0.00032876,14]
[334388895,1723021843573,-740.06,0.00032876,14]
[334388896,1723021843583,-500.0,0.00032876,14]
[334388897,1723021843592,-1103.06,0.00032876,14]
[334388898,1723021843603,-1223.42,0.00032876,14]
[334388899,1723021843614,-500.0,0.00032876,14]
[334388900,1723021843624,-798.15,0.00032876,14]
[334388901,1723021843634,-500.0,0.00032876,14]
[334388902,1723021843644,-544.65680486,0.00032876,14]
[334388903,1723021843654,-500.0,0.00032876,14]
[334388904,1723021843663,-2498.25,0.00032876,14]
[334388905,1723021843674,-500.0,0.00032876,14]
[334388906,1723021843685,-500.0,0.00032876,14]
[334388907,1723021843696,-500.0,0.00032876,14]
[334388908,1723021843705,-500.0,0.00032876,14]
[334388909,1723021843715,-587.06,0.00032876,14]
[334388910,1723021843725,-500.0,0.00032876,14]
[334388911,1723021843735,-500.0,0.00032876,14]
[334388912,1723021843745,-664.78,0.00032876,14]
[334388913,1723021843755,-1556.56,0.00032876,14]
[334388914,1723021843765,-500.0,0.00032876,14]
[334388915,1723021843775,-500.0,0.00032876,14]
[334388916,1723021843787,-500.72769233,0.00032876,14]
[334388917,1723021843797,-500.0,0.00032876,14]
[334388918,1723021843807,-500.0,0.00032876,14]
[334388919,1723021843818,-500.0,0.00032876,14]
[334388920,1723021843828,-500.0,0.00032876,14]
[334388921,1723021843838,-500.0,0.00032876,14]
[334388922,1723021843848,-504.08962127,0.00032876,14]
[334388923,1723021843858,-521.80025655,0.00032876,14]
[334388924,1723021843868,-500.0,0.00032876,14]
[334388925,1723021843879,-608.79,0.00032876,14]
[334388926,1723021843889,-1125.43,0.00032876,14]
[334388927,1723021843899,-1059.13,0.00032876,14]
[334388928,1723021843909,-500.55305366,0.00032876,14]
[334388929,1723021843919,-2384.51,0.00032876,14]
[334388930,1723021843929,-2542.42,0.00032876,14]
[334388931,1723021843939,-502.17559898,0.00032876,14]
[334388932,1723021843950,-507.00408539,0.00032876,14]
[334388933,1723021843960,-985.66,0.00032876,14]
[334388934,1723021843970,-517.98,0.00032876,14]
[334388935,1723021843980,-500.0,0.00032876,14]
[334388936,1723021843991,-500.0,0.00032876,14]
[334388937,1723021844001,-1732.7,0.00032876,14]
[334388938,1723021844012,-505.22,0.00032876,14]
[334388939,1723021844023,-500.0,0.00032876,14]
[334388940,1723021844040,-2070.54,0.00032876,14]
[334388941,1723021844053,-500.0,0.00032876,14]
[334388942,1723021844063,-500.0,0.00032876,14]
[334388943,1723021844074,-833.32,0.00032876,14]
[334388944,1723021844084,-500.0,0.00032876,14]
[334388945,1723021844094,-500.0,0.00032876,14]
[334388946,1723021844105,-976.14,0.00032876,14]
[334388947,1723021844286,-519.25959459,0.00032876,14]
[334388948,1723021844297,-1010.78,0.00032876,14]
[334388949,1723021844306,-500.0,0.00032876,14]
[334388950,1723021844316,-598.34486443,0.00032876,14]
[334388951,1723021844325,-2340.67,0.00032876,14]
[334388952,1723021844335,-500.53809244,0.00032876,14]
[334388953,1723021844345,-501.75314947,0.00032876,14]
[334388954,1723021844356,-500.0,0.00032876,14]
[334388955,1723021844367,-500.0,0.00032876,14]
[334388956,1723021844377,-500.0,0.00032876,14]
[334388957,1723021844387,-500.0,0.00032876,14]
[334388958,1723021844396,-500.0,0.00032876,14]
[334388959,1723021844406,-509.9,0.00032876,14]
[334388960,1723021844416,-694.5,0.00032876,14]
[334388961,1723021844426,-1512.76,0.00032876,14]
[334388962,1723021844436,-541.81,0.00032876,14]
[334388963,1723021844446,-500.0,0.00032876,14]
[334388964,1723021844456,-500.0,0.00032876,14]
[334388965,1723021844466,-500.0,0.00032876,14]
[334388966,1723021844475,-1566.61,0.00032876,14]
[334388967,1723021844485,-500.0,0.00032876,14]
[334388968,1723021844495,-500.0,0.00032876,14]
[334388969,1723021844504,-500.0,0.00032876,14]
[334388970,1723021844514,-500.0,0.00032876,14]
[334388971,1723021844524,-500.0,0.00032876,14]
[334388972,1723021844540,-976.15,0.00032876,14]
[334388973,1723021844550,-495.28383722,0.00032876,14]
[334388974,1723021844559,-500.0,0.00032876,14]
[334388975,1723021844569,-500.0,0.00032876,14]
[334388976,1723021844579,-501.36812964,0.00032876,14]
[334388977,1723021844591,-1071.1,0.00032876,14]
[334388978,1723021844600,-796.06,0.00032876,14]
[334388979,1723021844614,-500.0,0.00032876,14]
[334388980,1723021844624,-500.0,0.00032876,14]
[334388981,1723021844634,-500.65393547,0.00032876,14]
[334388982,1723021844644,-500.0,0.00032876,14]
[334388983,1723021844654,-2743.1,0.00032876,14]
[334388984,1723021844664,-876.59,0.00032876,14]
[334388985,1723021844674,-500.0,0.00032876,14]
[334388986,1723021844685,-500.0,0.00032876,14]
[334388987,1723021844695,-500.0,0.00032876,14]
[334388988,1723021844704,-500.0,0.00032876,14]
[334388989,1723021844714,-500.0,0.00032876,14]
[334388990,1723021844724,-500.0,0.00032876,14]
[334388991,1723021844733,-500.0,0.00032876,14]
[334388992,1723021844743,-500.0,0.00032876,14]
[334388993,1723021844752,-500.0,0.00032876,14]
[334388994,1723021844762,-500.0,0.00032876,14]
[334388995,1723021844772,-500.0,0.00032876,14]
[334388996,1723021844784,-500.0,0.00032876,14]
[334388997,1723021844794,-500.0,0.00032876,14]
[334388998,1723021844803,-500.0,0.00032876,14]
[334388999,1723021844813,-507.13630627,0.00032876,14]
[334389000,1723021844822,-500.0,0.00032876,14]
[334389001,1723021844832,-500.0,0.00032876,14]
[334389002,1723021844841,-500.0,0.00032876,14]
[334389003,1723021844851,-2750.19,0.00032876,14]
[334389004,1723021844860,-500.0,0.00032876,14]
[334389005,1723021844869,-500.0,0.00032876,14]
[334389006,1723021844879,-523.64,0.00032876,14]
[334389007,1723021844888,-500.0,0.00032876,14]
[334389008,1723021844897,-500.97262006,0.00032876,14]
[334389009,1723021844907,-513.47,0.00032876,14]
[334389010,1723021844916,-500.0,0.00032876,14]
[334389011,1723021844926,-480.23008436,0.00032876,14]
[334389012,1723021844936,-500.0,0.00032876,14]
[334389013,1723021844947,-500.0,0.00032876,14]
[334389014,1723021844956,-501.34687126,0.00032876,14]
[334389015,1723021844966,-657.68,0.00032876,14]
[334389016,1723021844976,-500.0,0.00032876,14]
[334389017,1723021844985,-500.0,0.00032876,14]
[334389018,1723021844995,-500.0,0.00032876,14]
[334389019,1723021845004,-500.0,0.00032876,14]
[334389020,1723021845014,-500.0,0.00032876,14]
[334389021,1723021845023,-500.0,0.00032876,14]
[334389022,1723021845037,-500.0,0.00032876,14]
[334389023,1723021845047,-2103.14,0.00032876,14]
[334389024,1723021845056,-898.24,0.00032876,14]
[334389025,1723021845065,-195.972484,0.00032876,7]
[334389026,1723021845075,-500.0,0.00032876,14]
[334389027,1723021845084,-500.39133348,0.00032876,14]
[334389028,1723021845093,-449.85558613,0.00032876,14]
[334389029,1723021845103,-535.92,0.00032876,14]
[334389030,1723021845112,-500.0,0.00032876,14]
[334389031,1723021845122,-610.44,0.00032876,14]
[334389032,1723021845132,-500.0,0.00032876,14]
[334389033,1723021845142,-3335.19,0.00032876,14]
[334389034,1723021845151,-500.0,0.00032876,14]
[334389035,1723021845161,-993.04,0.00032876,14]
[334389036,1723021845170,-782.71,0.00032876,14]
[334389037,1723021845180,-893.42,0.00032876,14]
[334389038,1723021845189,-500.0,0.00032876,14]
[334389039,1723021845199,-500.0,0.00032876,14]
[334389040,1723021845208,-160.55,0.00032876,14]
[334389041,1723021845218,-1128.9,0.00032876,14]
[334389042,1723021845227,-500.0,0.00032876,14]
[334389043,1723021845236,-235.201534,0.00032876,7]
[334389044,1723021845246,-500.0,0.00032876,14]
[334389045,1723021845255,-235.201538,0.00032876,7]
[334389046,1723021845265,-500.0,0.00032876,14]
[334389047,1723021845274,-587.7,0.00032876,14]
[334389048,1723021845289,-500.0,0.00032876,14]
[334389049,1723021845298,-500.0,0.00032876,14]
[334389050,1723021845308,-500.0,0.00032876,14]
[334389051,1723021845318,-500.19832758,0.00032876,14]
[334389052,1723021845327,-537.71,0.00032876,14]
[334389053,1723021845337,-500.0,0.00032876,14]
[334389054,1723021845346,-1656.55,0.00032876,14]
[334389055,1723021845356,-500.0,0.00032876,14]
[334389056,1723021845366,-500.0,0.00032876,14]
[334389057,1723021845376,-500.0,0.00032876,14]
[334389058,1723021845386,-500.0,0.00032876,14]
[334389059,1723021845395,-1603.32,0.00032876,14]
[334389060,1723021845406,-500.0,0.00032876,14]
[334389061,1723021845416,-500.0,0.00032876,14]
[334389062,1723021845425,-500.0,0.00032876,14]
[334389063,1723021845435,-500.0,0.00032876,14]
[334389064,1723021845444,-500.0,0.00032876,14]
[334389065,1723021845454,-2309.94,0.00032876,14]
[334389066,1723021845464,-500.0,0.00032876,14]
[334389067,1723021845474,-500.0,0.00032876,14]
[334389068,1723021845483,-500.0,0.00032876,14]
[334389069,1723021845493,-500.0,0.00032876,14]
[334389070,1723021845502,-500.0,0.00032876,14]
[334389071,1723021845512,-500.0,0.00032876,14]
[334389072,1723021845522,-500.0,0.00032876,14]
[334389073,1723021845536,-500.0,0.00032876,14]
[334389074,1723021845546,-500.0,0.00032876,14]
[334389075,1723021845556,-500.0,0.00032876,14]
[334389076,1723021845565,-500.0,0.00032876,14]
[334389077,1723021845575,-500.0,0.00032876,14]
[334389078,1723021845585,-593.04,0.00032876,14]
[334389079,1723021845594,-500.0,0.00032876,14]
[334389080,1723021845606,-500.0,0.00032876,14]
[334389081,1723021845615,-3766.48,0.00032876,14]
[334389082,1723021845625,-500.0,0.00032876,14]
[334389083,1723021845636,-500.0,0.00032876,14]
[334389085,1723021845646,-500.0,0.00032876,14]
[334389087,1723021845655,-591.84,0.00032876,14]
[334389089,1723021845665,-7329.65,0.00032876,14]
[334389091,1723021845675,-1939.83,0.00032876,14]
[334389092,1723021845685,-2447.93,0.00032876,14]
[334389094,1723021845695,-500.0,0.00032876,14]
[334389095,1723021845704,-500.0,0.00032876,14]
[334389096,1723021845714,-2483.16,0.00032876,14]
[334389097,1723021845724,-500.0,0.00032876,14]
[334389099,1723021845734,-3124.12970265,0.00032876,14]
[334389100,1723021845770,-90.95029735,0.00032876,14]
[334389101,1723021845782,-500.0,0.00032876,14]
[334389102,1723021845791,-500.0,0.00032876,14]
[334389103,1723021845800,-500.0,0.00032876,14]
[334389104,1723021845810,-500.0,0.00032876,14]
[334389105,1723021845820,-500.0,0.00032876,14]
[334389106,1723021845829,-500.0,0.00032876,14]
[334389107,1723021845839,-348.42970265,0.00032876,14]
[334389108,1723021845851,-872.96643488,0.00032876,14]
[334389122,1723021846404,-157.85964427,0.00021642,2]
[334389123,1723021846414,-151.0,0.00029673,7]
[334389124,1723021846424,-151.0,0.0003239,7]
[334389125,1723021846435,-387.64386247,0.00032876,14]
[334389127,1723021846445,-500.0,0.00032876,14]
[334389128,1723021846454,-520.6130615,0.00032876,14]
[334389129,1723021846463,-500.0,0.00032876,14]
[334389130,1723021846473,-500.0,0.00032876,14]
[334389131,1723021846483,-1096.15,0.00032876,14]
[334389132,1723021846492,-859.81,0.00032876,14]
[334389133,1723021846502,-508.80427827,0.00032876,14]
[334389134,1723021846512,-4484.08,0.00032876,14]
[334389135,1723021846564,-500.0,0.00032876,14]
[334389136,1723021846573,-500.0,0.00032876,14]
[334389137,1723021846583,-500.0,0.00032876,14]
[334389138,1723021846597,-500.0,0.00032876,14]
[334389139,1723021846606,-500.0,0.00032876,14]
[334389140,1723021846616,-625.457716,0.00032876,7]
[334389141,1723021846625,-962.09,0.00032876,14]
[334389142,1723021846636,-1702.311342,0.00032876,7]
[334389143,1723021846646,-1702.311342,0.00032876,7]
[334389144,1723021846655,-613.91,0.00032876,14]
[334389145,1723021846664,-625.457724,0.00032876,7]
[334389146,1723021846674,-1702.311342,0.00032876,7]
[334389147,1723021846685,-1702.311334,0.00032876,7]
[334389148,1723021846694,-500.48009937,0.00032876,14]
[334389149,1723021846704,-501.19382013,0.00032876,14]
[334389150,1723021846714,-2385.72,0.00032876,14]
[334389151,1723021846723,-500.0,0.00032876,14]
[334389152,1723021846732,-500.02643207,0.00032876,14]
[334389153,1723021846741,-515.72744108,0.00032876,14]
[334389154,1723021846751,-648.32,0.00032876,14]
[334389155,1723021846760,-500.63198735,0.00032876,7]
[334389156,1723021846770,-500.0,0.00032876,14]
[334389157,1723021846783,-1952.66,0.00032876,14]
[334389158,1723021846795,-500.0,0.00032876,14]
[334389159,1723021846804,-744.73,0.00032876,14]
[334389160,1723021846814,-503.78874745,0.00032876,14]
[334389161,1723021846823,-152.458739,0.00032876,7]
[334389162,1723021846832,-331.93414765,0.00032876,14]
[334389163,1723021846840,-500.0,0.00032876,14]
[334389164,1723021846849,-2215.46,0.00032876,14]
[334389165,1723021846858,-152.458739,0.00032876,7]
[334389166,1723021846867,-4462.38,0.00032876,14]
[334389167,1723021846876,-500.0,0.00032876,14]
[334389168,1723021846885,-500.0,0.00032876,14]
[334389169,1723021846895,-656.52,0.00032876,14]
[334389170,1723021846905,-1032.11,0.00032876,14]
[334389171,1723021846915,-500.0,0.00032876,6]
[334389172,1723021846925,-500.0,0.00032876,14]
[334389173,1723021846934,-500.0,0.00032876,14]
[334389174,1723021846943,-501.13848063,0.00032876,14]
[334389175,1723021846953,-500.0,0.00032876,14]
[334389176,1723021846963,-610.77,0.00032876,14]
[334389177,1723021846972,-501.52075038,0.00032876,14]
[334389178,1723021846982,-769.53,0.00032876,14]
[334389179,1723021846991,-500.0,0.00032876,14]
[334389180,1723021847002,-2787.58,0.00032876,14]
[334389181,1723021847012,-500.0,0.00032876,14]
[334389182,1723021847021,-500.0,0.00032876,14]
[334389183,1723021847034,-289.103478,0.00032876,7]
[334389184,1723021847045,-289.103478,0.00032876,7]
[334389185,1723021847055,-289.103478,0.00032876,7]
[334389186,1723021847066,-5365.07,0.00032876,14]
[334389187,1723021847076,-500.0,0.00032876,14]
[334389188,1723021847085,-500.0,0.00032876,14]
[334389189,1723021847096,-289.103478,0.00032876,7]
[334389190,1723021847106,-289.103478,0.00032876,7]
[334389191,1723021847116,-2845.65,0.00032876,14]